bitfinex-derivatives/quotes_BNBF0:USTF0_20250710
["timestamp","ask_amount","ask_price","bid_price","bid_amount"]
[1752143510862,1.44445943,669.67,669.17,1.331]
[1752143511060,1.44445943,669.66,669.17,1.331]
[1752143511260,1.44445943,669.65,669.17,1.331]
[1752143511457,1.44445943,669.64,669.17,1.331]
[1752143511658,1.44445943,669.63,669.17,1.331]
[1752143511958,1.44445943,669.62,669.17,1.331]
[1752143512263,1.44445943,669.61,669.17,1.331]
[1752143512464,1.44445943,669.6,669.17,1.331]
[1752143512761,1.44445943,669.59,669.17,1.331]
[1752143512962,1.44445943,669.58,669.17,1.331]
[1752143513159,1.44445943,669.57,669.17,1.331]
[1752143513462,1.44445943,669.56,669.17,1.331]
[1752143513658,1.44445943,669.55,669.17,1.331]
[1752143513857,1.44445943,669.54,669.17,1.331]
[1752143514061,1.44445943,669.53,669.17,1.331]
[1752143514257,1.67009224,669.77,669.17,1.331]
[1752143514258,1.44445943,669.52,669.17,1.331]
[1752143514463,1.44445943,669.51,669.17,1.331]
[1752143514763,1.44445943,669.5,669.17,1.331]
[1752143515059,1.44445943,669.49,669.17,1.331]
[1752143515260,1.44445943,669.48,669.17,1.331]
[1752143515560,1.67009224,669.77,669.17,1.331]
[1752143515758,1.44401488,669.76,669.17,1.331]
[1752143515958,1.44401488,669.75,669.17,1.331]
[1752143516160,1.44401488,669.74,669.17,1.331]
[1752143516463,1.44401488,669.73,669.17,1.331]
[1752143516659,1.44401488,669.72,669.17,1.331]
[1752143516861,1.44401488,669.71,669.17,1.331]
[1752143517064,1.44401488,669.7,669.17,1.331]
[1752143517266,1.44401488,669.69,669.17,1.331]
[1752143517467,1.44401488,669.68,669.17,1.331]
[1752143517668,1.44401488,669.67,669.17,1.331]
[1752143517865,1.44401488,669.66,669.17,1.331]
[1752143518064,1.44401488,669.65,669.17,1.331]
[1752143518367,1.44401488,669.64,669.17,1.331]
[1752143518566,1.44401488,669.63,669.17,1.331]
[1752143518863,1.44401488,669.62,669.17,1.331]
[1752143519062,1.44401488,669.61,669.17,1.331]
[1752143519263,1.44401488,669.6,669.17,1.331]
[1752143519464,1.44401488,669.59,669.17,1.331]
[1752143519666,1.44401488,669.58,669.17,1.331]
[1752143519865,1.44401488,669.57,669.17,1.331]
[1752143520064,1.44401488,669.56,669.17,1.331]
[1752143520268,1.44401488,669.55,669.17,1.331]
[1752143520465,1.44401488,669.54,669.17,1.331]
[1752143520765,1.67009224,669.75,669.17,1.331]
[1752143520766,1.44401488,669.53,669.17,1.331]
[1752143520967,1.44401488,669.52,669.17,1.331]
[1752143521166,1.44401488,669.51,669.17,1.331]
[1752143521370,1.44401488,669.5,669.17,1.331]
[1752143521565,1.67009224,669.73,669.17,1.331]
[1752143521763,1.44377839,669.72,669.17,1.331]
[1752143521965,1.44377839,669.71,669.17,1.331]
[1752143522266,1.44377839,669.7,669.17,1.331]
[1752143522466,1.44377839,669.69,669.17,1.331]
[1752143522666,1.44377839,669.68,669.17,1.331]
[1752143522864,1.44377839,669.67,669.17,1.331]
[1752143523067,1.44377839,669.66,669.17,1.331]
[1752143523267,3.30543469,669.99,669.17,1.331]
[1752143523268,1.44377839,669.65,669.17,1.331]
[1752143523470,1.44377839,669.64,669.17,1.331]
[1752143523670,1.44377839,669.63,669.17,1.331]
[1752143523967,1.44377839,669.62,669.17,1.331]
[1752143524267,1.44377839,669.61,669.17,1.331]
[1752143524571,1.44377839,669.6,669.17,1.331]
[1752143524770,1.44377839,669.59,669.17,1.331]
[1752143524971,1.44377839,669.58,669.17,1.331]
[1752143525175,1.44377839,669.57,669.17,1.331]
[1752143525374,1.44377839,669.56,669.17,1.331]
[1752143525574,1.44377839,669.55,669.17,1.331]
[1752143525771,1.44377839,669.54,669.17,1.331]
[1752143525971,1.44377839,669.53,669.17,1.331]
[1752143526172,1.44377839,669.52,669.17,1.331]
[1752143526372,1.44377839,669.51,669.17,1.331]
[1752143526572,1.67009224,669.8,669.17,1.331]
[1752143526773,1.44388622,669.79,669.17,1.331]
[1752143527073,1.44388622,669.78,669.17,1.331]
[1752143527277,1.44388622,669.77,669.17,1.331]
[1752143527575,1.44388622,669.76,669.17,1.331]
[1752143527775,1.44388622,669.75,669.17,1.331]
[1752143527980,1.44388622,669.74,669.17,1.331]
[1752143528279,1.44388622,669.73,669.17,1.331]
[1752143528476,1.44388622,669.72,669.17,1.331]
[1752143528681,1.44388622,669.71,669.17,1.331]
[1752143528976,1.44388622,669.7,669.17,1.331]
[1752143529184,1.44388622,669.69,669.17,1.331]
[1752143529377,1.44388622,669.68,669.17,1.331]
[1752143529582,1.44388622,669.67,669.17,1.331]
[1752143529782,1.44388622,669.66,669.17,1.331]
[1752143529981,1.44388622,669.65,669.17,1.331]
[1752143530182,1.44388622,669.64,669.17,1.331]
[1752143530478,1.44388622,669.63,669.17,1.331]
[1752143530678,1.44388622,669.62,669.17,1.331]
[1752143530882,1.44388622,669.61,669.17,1.331]
[1752143531177,1.44388622,669.6,669.17,1.331]
[1752143531378,1.44388622,669.59,669.17,1.331]
[1752143531576,1.44388622,669.58,669.17,1.331]
[1752143531780,1.44388622,669.57,669.17,1.331]
[1752143531979,1.44388622,669.56,669.17,1.331]
[1752143532178,1.44388622,669.55,669.17,1.331]
[1752143532381,1.44388622,669.54,669.17,1.331]
[1752143532582,1.44388622,669.53,669.17,1.331]
[1752143532880,1.44388622,669.52,669.17,1.331]
[1752143533080,1.67009224,669.79,669.17,1.331]
[1752143533283,1.44519299,669.78,669.17,1.331]
[1752143533484,1.44519299,669.77,669.17,1.331]
[1752143533684,1.44519299,669.76,669.17,1.331]
[1752143533885,1.44519299,669.75,669.17,1.331]
[1752143534079,1.44519299,669.74,669.17,1.331]
[1752143534283,2.20362312,669.96,669.17,1.331]
[1752143534482,1.66528761,669.79,669.17,1.331]
[1752143534681,1.44580729,669.78,669.17,1.331]
[1752143534879,1.44580729,669.77,669.17,1.331]
[1752143535082,1.44580729,669.76,669.17,1.331]
[1752143535281,1.44580729,669.75,669.17,1.331]
[1752143535484,1.44580729,669.74,669.17,1.331]
[1752143535685,1.44580729,669.73,669.17,1.331]
[1752143535882,1.44580729,669.72,669.17,1.331]
[1752143536184,1.44580729,669.71,669.17,1.331]
[1752143536382,1.44580729,669.7,669.17,1.331]
[1752143536681,1.44580729,669.69,669.17,1.331]
[1752143536886,1.44580729,669.68,669.17,1.331]
[1752143537183,1.44580729,669.67,669.17,1.331]
[1752143537388,1.44580729,669.66,669.17,1.331]
[1752143537581,1.44580729,669.65,669.17,1.331]
[1752143537783,1.44580729,669.64,669.17,1.331]
[1752143538086,1.44580729,669.63,669.17,1.331]
[1752143538283,1.44580729,669.62,669.17,1.331]
[1752143538487,1.44580729,669.61,669.17,1.331]
[1752143538684,1.44580729,669.6,669.17,1.331]
[1752143538881,1.44580729,669.59,669.17,1.331]
[1752143539084,1.44580729,669.58,669.17,1.331]
[1752143539285,1.44580729,669.57,669.17,1.331]
[1752143539488,1.44580729,669.56,669.17,1.331]
[1752143539692,1.44580729,669.55,669.17,1.331]
[1752143539889,1.44580729,669.54,669.17,1.331]
[1752143540091,1.44580729,669.53,669.17,1.331]
[1752143540287,1.44580729,669.52,669.17,1.331]
[1752143540491,1.44580729,669.51,669.17,1.331]
[1752143540691,1.44580729,669.5,669.17,1.331]
[1752143540891,1.44580729,669.49,669.17,1.331]
[1752143541191,1.44580729,669.48,669.17,1.331]
[1752143541387,1.44580729,669.47,669.17,1.331]
[1752143541588,1.44580729,669.46,669.17,1.331]
[1752143541791,1.44580729,669.45,669.17,1.331]
[1752143542090,1.44580729,669.44,669.17,1.331]
[1752143542291,1.44580729,669.43,669.17,1.331]
[1752143542494,1.44580729,669.42,669.17,1.331]
[1752143542791,1.44580729,669.41,669.17,1.331]
[1752143542988,1.44580729,669.4,669.17,1.331]
[1752143543188,1.44580729,669.39,669.17,1.331]
[1752143543395,1.66528761,669.68,669.17,1.331]
[1752143543593,3.11416931,669.67,669.17,1.331]
[1752143543889,3.11416931,669.66,669.17,1.331]
[1752143544089,1.4488817,669.65,669.17,1.331]
[1752143544289,1.4488817,669.64,669.17,1.331]
[1752143544493,1.4488817,669.63,669.17,1.331]
[1752143544696,1.4488817,669.62,669.17,1.331]
[1752143544989,1.4488817,669.61,669.17,1.331]
[1752143545194,1.4488817,669.6,669.17,1.331]
[1752143545494,1.4488817,669.59,669.17,1.331]
[1752143545694,1.4488817,669.58,669.17,1.331]
[1752143545893,1.4488817,669.57,669.17,1.331]
[1752143546090,1.4488817,669.56,669.17,1.331]
[1752143546394,1.4488817,669.55,669.17,1.331]
[1752143546593,1.4488817,669.54,669.16,0.25981104]
[1752143546790,1.4488817,669.53,669.16,0.25981104]
[1752143546989,1.4488817,669.52,669.16,0.25981104]
[1752143547289,1.4488817,669.51,669.16,0.25981104]
[1752143547491,1.4488817,669.5,669.16,0.25981104]
[1752143547693,1.4488817,669.49,669.16,0.25981104]
[1752143547894,1.66528761,669.8,669.16,0.25981104]
[1752143548090,1.44924382,669.79,669.16,0.25981104]
[1752143548294,1.44924382,669.78,669.16,0.25981104]
[1752143548590,1.44924382,669.77,669.16,0.25981104]
[1752143548896,1.44924382,669.76,669.16,0.25981104]
[1752143549096,1.44924382,669.75,669.16,0.25981104]
[1752143549294,1.44924382,669.74,669.16,0.25981104]
[1752143549492,1.44924382,669.73,669.16,0.25981104]
[1752143549695,1.44924382,669.72,669.16,0.25981104]
[1752143549993,1.44924382,669.71,669.16,0.25981104]
[1752143550196,1.44924382,669.7,669.16,0.25981104]
[1752143550389,1.44924382,669.69,669.16,0.25981104]
[1752143550595,1.44924382,669.68,669.16,0.25981104]
[1752143550794,1.44924382,669.67,669.17,1.356]
[1752143550992,1.44924382,669.66,669.17,1.356]
[1752143551197,1.44924382,669.65,669.17,1.356]
[1752143551493,1.44924382,669.64,669.17,1.356]
[1752143551693,1.44924382,669.63,669.17,1.356]
[1752143551899,1.44924382,669.62,669.17,1.356]
[1752143552095,1.44924382,669.61,669.17,1.356]
[1752143552397,1.44924382,669.6,669.17,1.356]
[1752143552594,1.44924382,669.59,669.17,1.356]
[1752143552898,1.44924382,669.58,669.17,1.356]
[1752143553198,1.44924382,669.57,669.17,1.356]
[1752143553392,1.44924382,669.56,669.17,1.356]
[1752143553596,1.66528761,669.9,669.17,1.356]
[1752143553894,1.4471187,669.89,669.17,1.356]
[1752143554094,1.4471187,669.88,669.17,1.356]
[1752143554296,1.4471187,669.87,669.17,1.356]
[1752143554598,1.4471187,669.86,669.17,1.356]
[1752143554797,1.4471187,669.85,669.17,1.356]
[1752143554995,1.4471187,669.84,669.17,1.356]
[1752143555193,1.4471187,669.83,669.17,1.356]
[1752143555393,1.4471187,669.82,669.17,1.356]
[1752143555694,1.44678565,669.81,669.17,1.356]
[1752143555894,1.44678565,669.8,669.17,1.356]
[1752143556095,1.44678565,669.79,669.17,1.356]
[1752143556295,1.44678565,669.78,669.17,1.356]
[1752143556495,1.44678565,669.77,669.17,1.356]
[1752143556699,1.44678565,669.76,669.17,1.356]
[1752143556999,1.44678565,669.75,669.17,1.356]
[1752143557196,1.44678565,669.74,669.17,1.356]
[1752143557496,1.6659299,669.93,669.17,1.356]
[1752143557497,1.44678565,669.73,669.17,1.356]
[1752143557694,1.44678565,669.72,669.17,1.356]
[1752143557896,1.44678565,669.71,669.17,1.356]
[1752143558094,1.44678565,669.7,669.17,1.356]
[1752143558294,1.44678565,669.69,669.17,1.356]
[1752143558499,1.44678565,669.68,669.17,1.356]
[1752143558699,1.44678565,669.67,669.17,1.356]
[1752143558900,1.44678565,669.66,669.17,1.356]
[1752143559099,1.44678565,669.65,669.17,1.356]
[1752143559301,1.44678565,669.64,669.17,1.356]
[1752143559496,1.44678565,669.63,669.17,1.356]
[1752143559696,1.44678565,669.62,669.17,1.356]
[1752143559902,1.44678565,669.61,669.17,1.356]
[1752143560102,1.6659299,669.92,669.17,1.356]
[1752143560300,1.44606171,669.91,669.17,1.356]
[1752143560498,1.44606171,669.9,669.17,1.356]
[1752143560801,1.44606171,669.89,669.17,1.356]
[1752143561003,1.44606171,669.88,669.17,1.356]
[1752143561204,1.44606171,669.87,669.17,1.356]
[1752143561504,1.44606171,669.86,669.17,1.356]
[1752143561804,1.44606171,669.85,669.17,1.356]
[1752143562003,1.44606171,669.84,669.17,1.356]
[1752143562200,1.44606171,669.83,669.17,1.356]
[1752143562500,1.44606171,669.82,669.17,1.356]
[1752143562703,1.44606171,669.81,669.17,1.356]
[1752143562901,1.44606171,669.8,669.17,1.356]
[1752143563099,1.44606171,669.79,669.17,1.356]
[1752143563305,1.44606171,669.78,669.17,1.356]
[1752143563603,1.44606171,669.77,669.17,1.356]
[1752143563802,1.44606171,669.76,669.17,1.356]
[1752143564001,1.44606171,669.75,669.17,1.356]
[1752143564199,1.44606171,669.74,669.17,1.356]
[1752143564404,1.44606171,669.73,669.17,1.356]
[1752143564600,1.44606171,669.72,669.17,1.356]
[1752143564804,1.44606171,669.71,669.17,1.356]
[1752143565001,1.44606171,669.7,669.17,1.356]
[1752143565200,1.44606171,669.69,669.17,1.356]
[1752143565504,1.44606171,669.68,669.17,1.356]
[1752143565804,1.44606171,669.67,669.17,1.356]
[1752143566101,1.44606171,669.66,669.17,1.356]
[1752143566300,1.44606171,669.65,669.17,1.356]
[1752143566504,1.6659299,669.98,669.17,1.356]
[1752143566705,1.44558138,669.97,669.17,1.356]
[1752143567001,1.44558138,669.96,669.17,1.356]
[1752143567203,1.44558138,669.95,669.17,1.356]
[1752143567402,1.44558138,669.94,669.17,1.356]
[1752143567601,1.44558138,669.93,669.17,1.356]
[1752143567901,1.44558138,669.92,669.17,1.356]
[1752143568100,1.44558138,669.91,669.17,1.356]
[1752143568304,1.44558138,669.9,669.17,1.356]
[1752143568604,1.44558138,669.89,669.17,1.356]
[1752143568804,1.44558138,669.88,669.17,1.356]
[1752143569004,1.44558138,669.87,669.17,1.356]
[1752143569204,1.44558138,669.86,669.17,1.356]
[1752143569407,1.44558138,669.85,669.17,1.356]
[1752143569603,1.44558138,669.84,669.17,1.356]
[1752143569803,1.44558138,669.83,669.17,1.356]
[1752143570104,1.44558138,669.82,669.17,1.356]
[1752143570408,1.44558138,669.81,669.17,1.356]
[1752143570605,1.44558138,669.8,669.17,1.356]
[1752143570806,1.44558138,669.79,669.16,0.25981104]
[1752143571006,1.44558138,669.78,669.16,0.25981104]
[1752143571206,1.44558138,669.77,669.16,0.25981104]
[1752143571405,1.44558138,669.76,669.16,0.25981104]
[1752143571602,1.44558138,669.75,669.16,0.25981104]
[1752143571807,1.44558138,669.74,669.16,0.25981104]
[1752143572005,1.44558138,669.73,669.16,0.25981104]
[1752143572206,1.44558138,669.72,669.16,0.25981104]
[1752143572407,1.44558138,669.71,669.16,0.25981104]
[1752143572603,1.44558138,669.7,669.16,0.25981104]
[1752143572906,1.44558138,669.69,669.16,0.25981104]
[1752143573105,1.44558138,669.68,669.16,0.25981104]
[1752143573308,1.6659299,669.99,669.16,0.25981104]
[1752143573508,1.44502074,669.98,669.16,0.25981104]
[1752143573704,1.44502074,669.97,669.16,0.25981104]
[1752143573912,1.44502074,669.96,669.17,2.046]
[1752143574106,1.44502074,669.95,669.17,2.046]
[1752143574310,1.44502074,669.94,669.17,2.046]
[1752143574510,1.44502074,669.93,669.17,2.046]
[1752143574707,1.6659299,669.98,669.17,2.046]
[1752143574708,1.44502074,669.92,669.17,2.046]
[1752143574907,1.44502074,669.91,669.17,2.046]
[1752143575107,1.44502074,669.9,669.17,2.046]
[1752143575311,1.44502074,669.89,669.17,2.046]
[1752143575509,1.44502074,669.88,669.17,2.046]
[1752143575708,1.44502074,669.87,669.17,2.046]
[1752143575912,1.44502074,669.86,669.17,2.046]
[1752143576112,1.6659299,669.98,669.17,2.046]
[1752143576113,1.44502074,669.85,669.17,2.046]
[1752143576409,1.44502074,669.84,669.17,2.046]
[1752143576615,1.44502074,669.83,669.17,2.046]
[1752143576813,1.6659299,669.89,669.17,2.046]
[1752143576814,1.44502074,669.82,669.17,2.046]
[1752143577014,1.44502074,669.81,669.17,2.046]
[1752143577211,1.44502074,669.8,669.17,2.046]
[1752143577414,1.44502074,669.79,669.17,2.046]
[1752143577710,1.44502074,669.78,669.17,2.046]
[1752143578014,1.44502074,669.77,669.17,2.046]
[1752143578214,1.44502074,669.76,669.17,2.046]
[1752143578415,1.44502074,669.75,669.17,2.046]
[1752143578614,1.6659299,669.88,669.17,2.046]
[1752143578615,1.44502074,669.74,669.17,2.046]
[1752143578910,1.44502074,669.73,669.17,2.046]
[1752143579109,1.44502074,669.72,669.17,2.046]
[1752143579308,1.44502074,669.71,669.17,2.046]
[1752143579511,1.44502074,669.7,669.17,2.046]
[1752143579710,1.44502074,669.69,669.17,2.046]
[1752143579911,1.44502074,669.68,669.17,2.046]
[1752143580214,5.50905782,670.78,669.17,2.046]
[1752143580215,1.44502074,669.67,669.17,2.046]
[1752143580414,1.44502074,669.66,669.17,2.046]
[1752143580714,1.44502074,669.65,669.17,2.046]
[1752143580914,1.44502074,669.64,669.17,2.046]
[1752143581114,1.44502074,669.63,669.17,2.046]
[1752143581313,1.44502074,669.62,669.17,2.046]
[1752143581511,1.44502074,669.61,669.17,2.046]
[1752143581816,1.44502074,669.6,669.17,2.046]
[1752143582014,1.6659299,669.89,669.17,2.046]
[1752143582210,1.44512697,669.88,669.17,2.046]
[1752143582616,1.44512697,669.87,669.17,2.046]
[1752143582915,1.44512697,669.86,669.17,2.046]
[1752143583111,1.44512697,669.85,669.17,2.046]
[1752143583312,1.44512697,669.84,669.17,2.046]
[1752143583613,1.44512697,669.83,669.17,2.046]
[1752143583815,1.6659299,669.89,669.17,2.046]
[1752143583816,1.44512697,669.82,669.17,2.046]
[1752143584116,1.44512697,669.81,669.17,2.046]
[1752143584415,1.44512697,669.8,669.17,2.046]
[1752143584616,1.44512697,669.79,669.17,2.046]
[1752143584816,1.44512697,669.78,669.17,2.046]
[1752143585115,1.44512697,669.77,669.17,2.046]
[1752143585313,1.44512697,669.76,669.17,2.046]
[1752143585514,1.44512697,669.75,669.17,2.046]
[1752143585718,1.44512697,669.74,669.17,2.046]
[1752143586018,1.44512697,669.73,669.17,2.046]
[1752143586215,1.44512697,669.72,669.17,2.046]
[1752143586420,1.44512697,669.71,669.17,2.046]
[1752143586721,1.44512697,669.7,669.17,2.046]
[1752143586914,1.44512697,669.69,669.17,2.046]
[1752143587120,1.44512697,669.68,669.17,2.046]
[1752143587420,1.44512697,669.67,669.17,2.046]
[1752143587620,1.44512697,669.66,669.17,2.046]
[1752143587819,1.44512697,669.65,669.17,2.046]
[1752143588121,1.44512697,669.64,669.17,2.046]
[1752143588318,1.44512697,669.63,669.17,2.046]
[1752143588521,1.44512697,669.62,669.17,2.046]
[1752143588716,1.44512697,669.61,669.17,2.046]
[1752143588920,1.44512697,669.6,669.17,2.046]
[1752143589120,1.6659299,669.91,669.17,2.046]
[1752143589321,1.44630301,669.9,669.17,2.046]
[1752143589517,1.44630301,669.89,669.17,2.046]
[1752143589821,1.44630301,669.88,669.17,2.046]
[1752143590016,1.44630301,669.87,669.17,2.046]
[1752143590220,1.44630301,669.86,669.17,2.046]
[1752143590416,1.6659299,669.9,669.17,2.046]
[1752143590417,1.44630301,669.85,669.17,2.046]
[1752143590616,1.44630301,669.84,669.17,2.046]
[1752143590821,1.44630301,669.83,669.17,2.046]
[1752143591015,1.44630301,669.82,669.17,2.046]
[1752143591221,1.44630301,669.81,669.17,2.046]
[1752143591422,1.44630301,669.8,669.17,2.046]
[1752143591618,1.44630301,669.79,669.17,2.046]
[1752143591823,1.6659299,669.89,669.17,2.046]
[1752143591824,1.44630301,669.78,669.17,2.046]
[1752143592117,1.44630301,669.77,669.17,2.046]
[1752143592322,1.44630301,669.76,669.17,2.046]
[1752143592524,1.44630301,669.75,669.17,2.046]
[1752143592820,1.44630301,669.74,669.17,2.046]
[1752143593123,1.44630301,669.73,669.17,2.046]
[1752143593420,1.44630301,669.72,669.17,2.046]
[1752143593722,1.44630301,669.71,669.17,2.046]
[1752143593918,1.44630301,669.7,669.17,2.046]
[1752143594123,1.44630301,669.69,669.17,2.046]
[1752143594319,1.44630301,669.68,669.17,2.046]
[1752143594524,1.44630301,669.67,669.17,2.046]
[1752143594824,1.44630301,669.66,669.17,2.046]
[1752143595021,1.44630301,669.65,669.17,2.046]
[1752143595220,1.44630301,669.64,669.17,2.046]
[1752143595419,1.44630301,669.63,669.17,2.046]
[1752143595620,1.44630301,669.62,669.17,2.046]
[1752143595821,1.44630301,669.61,669.17,2.046]
[1752143596021,1.44630301,669.6,669.17,2.046]
[1752143596224,0.96432868,670.05,669.17,2.046]
[1752143596526,1.66636966,669.89,669.17,2.046]
[1752143596722,1.44679426,669.88,669.17,2.046]
[1752143596922,1.44679426,669.87,669.17,2.046]
[1752143597124,1.44679426,669.86,669.17,2.046]
[1752143597324,1.44679426,669.85,669.17,2.046]
[1752143597628,1.44679426,669.84,669.17,2.046]
[1752143597923,1.44679426,669.83,669.17,2.046]
[1752143598127,1.44679426,669.82,669.17,2.046]
[1752143598328,1.44679426,669.81,669.17,2.046]
[1752143598526,1.44679426,669.8,669.17,2.046]
[1752143598734,1.44679426,669.79,669.17,2.046]
[1752143598935,1.44679426,669.78,669.17,2.046]
[1752143599131,1.44679426,669.77,669.17,2.046]
[1752143599433,1.44679426,669.76,669.17,2.046]
[1752143599634,1.44679426,669.75,669.17,2.046]
[1752143599935,1.44679426,669.74,669.17,2.046]
[1752143600232,1.44679426,669.73,669.17,2.046]
[1752143600431,1.44679426,669.72,669.17,2.046]
[1752143600730,1.44679426,669.71,669.17,2.046]
[1752143600935,1.44679426,669.7,669.17,2.046]
[1752143601129,1.44679426,669.69,669.17,2.046]
[1752143601333,1.44679426,669.68,669.17,2.046]
[1752143601535,1.44679426,669.67,669.17,2.046]
[1752143601732,1.44679426,669.66,669.17,2.046]
[1752143601934,1.44679426,669.65,669.17,2.046]
[1752143602132,1.44679426,669.64,669.17,2.046]
[1752143602431,1.44679426,669.63,669.17,2.046]
[1752143602635,1.44679426,669.62,669.17,2.046]
[1752143602835,1.44679426,669.61,669.17,2.046]
[1752143603029,1.44679426,669.6,669.17,2.046]
[1752143603230,1.44679426,669.59,669.2,0.25983238]
[1752143603531,1.44679426,669.58,669.2,0.25983238]
[1752143603733,1.44679426,669.57,669.2,0.25983238]
[1752143603934,1.44679426,669.56,669.2,0.25983238]
[1752143604136,0.96437991,670.0,669.2,0.25983238]
[1752143604137,1.44679426,669.55,669.2,0.25983238]
[1752143604337,1.44679426,669.54,669.2,0.25983238]
[1752143604538,1.66636966,669.82,669.2,0.25983238]
[1752143604737,1.44864387,669.81,669.2,0.25983238]
[1752143605035,1.44864387,669.8,669.2,0.25983238]
[1752143605238,1.44864387,669.79,669.2,0.25983238]
[1752143605437,1.44864387,669.78,669.2,0.25983238]
[1752143605637,1.44864387,669.77,669.2,0.25983238]
[1752143605835,1.44864387,669.76,669.2,0.25983238]
[1752143606038,1.44864387,669.75,669.2,0.25983238]
[1752143606334,1.44864387,669.74,669.2,0.25983238]
[1752143606537,1.44864387,669.73,669.2,0.25983238]
[1752143606833,1.44864387,669.72,669.2,0.25983238]
[1752143607035,1.44864387,669.71,669.2,0.25983238]
[1752143607234,1.44864387,669.7,669.2,0.25983238]
[1752143607435,1.44864387,669.69,669.2,0.25983238]
[1752143607638,1.44864387,669.68,669.2,0.25983238]
[1752143607833,1.44864387,669.67,669.2,0.25983238]
[1752143608134,1.44864387,669.66,669.2,0.25983238]
[1752143608437,1.44864387,669.65,669.2,0.25983238]
[1752143608635,1.44864387,669.64,669.2,0.25983238]
[1752143608838,1.44864387,669.63,669.2,0.25983238]
[1752143609035,1.44864387,669.62,669.2,0.25983238]
[1752143609240,1.44864387,669.61,669.2,0.25983238]
[1752143609436,2.20362312,669.93,669.2,0.25983238]
[1752143609636,1.66992714,669.78,669.2,0.25983238]
[1752143609841,1.44940203,669.77,669.2,0.25983238]
[1752143610140,1.44940203,669.76,669.2,0.25983238]
[1752143610338,1.44940203,669.75,669.2,0.25983238]
[1752143610544,1.44940203,669.74,669.2,0.25983238]
[1752143610744,1.44940203,669.73,669.2,0.25983238]
[1752143610942,1.44940203,669.72,669.2,0.25983238]
[1752143611142,1.44940203,669.71,669.2,0.25983238]
[1752143611442,1.44940203,669.7,669.2,0.25983238]
[1752143611646,1.44940203,669.69,669.2,0.25983238]
[1752143611947,1.44940203,669.68,669.2,0.25983238]
[1752143612146,1.44940203,669.67,669.2,0.25983238]
[1752143612341,1.66992714,669.78,669.2,0.25983238]
[1752143612342,1.44940203,669.66,669.2,0.25983238]
[1752143612641,1.44940203,669.65,669.2,0.25983238]
[1752143612945,1.44940203,669.64,669.2,0.25983238]
[1752143613145,1.44940203,669.63,669.2,0.25983238]
[1752143613345,1.44940203,669.62,669.2,0.25983238]
[1752143613548,1.44940203,669.61,669.2,0.25983238]
[1752143613749,1.44940203,669.6,669.2,0.25983238]
[1752143614047,1.44940203,669.59,669.2,0.25983238]
[1752143614347,1.44940203,669.58,669.2,0.25983238]
[1752143614542,1.44940203,669.57,669.2,0.25983238]
[1752143614747,1.44940203,669.56,669.2,0.25983238]
[1752143614947,1.44940203,669.55,669.2,0.25983238]
[1752143615146,1.44940203,669.54,669.2,0.25983238]
[1752143615346,1.44940203,669.53,669.2,0.25983238]
[1752143615544,1.44940203,669.52,669.2,0.25983238]
[1752143615746,1.66992714,669.8,669.2,0.25983238]
[1752143615948,1.44941151,669.79,669.2,0.25983238]
[1752143616147,1.44941151,669.78,669.2,0.25983238]
[1752143616448,1.44941151,669.77,669.2,0.25983238]
[1752143616645,1.44941151,669.76,669.2,0.25983238]
[1752143616952,1.44941151,669.75,669.2,0.25983238]
[1752143617247,1.44941151,669.74,669.2,0.25983238]
[1752143617450,1.44941151,669.73,669.2,0.25983238]
[1752143617647,1.44941151,669.72,669.2,0.25983238]
[1752143617847,1.44941151,669.71,669.2,0.25983238]
[1752143618049,1.44941151,669.7,669.2,0.25983238]
[1752143618246,1.44941151,669.69,669.2,0.25983238]
[1752143618450,1.44941151,669.68,669.2,0.25983238]
[1752143618650,1.44941151,669.67,669.2,0.25983238]
[1752143618951,1.44941151,669.66,669.2,0.25983238]